Cogmind - Beta 16 @@@ ROGUE MODE // 2025.11.19 @ 13:54:57 Player: Naughtyusername Result: Core destroyed Performance ------------- Evolutions (6) 3000 Regions Visited (17) 3400 Robots Destroyed (213) 1065 Value Destroyed (6411) 6411 Prototype IDs (44) 880 Alien Tech Used (0) 0 Bonus (2567) 2567 TOTAL SCORE: 17323 Bonus ------- High Alert Combat Kills 335 Follower Combat Kills 2274 Network Hubs Disabled 400 Registered with UFD 300 Met Optimus in HQ 500 Built Enhanced Grunts 300 Met R17 at Cetus 500 Friendly Fire -2042 Cogmind --------- Core Integrity 0/1150 Matter 295/300 Energy 100/100 System Corruption 23% Temperature Cool (0) Movement Core (50) Location -4/Factory Parts ------- > --- POWER (2) -------- (None) > --- PROPULSION (6) --- (None) > --- UTILITY (9) ------ (None) > --- WEAPON (2) ------- (None) > --- INVENTORY (5) ---- Advanced Sensor Array Advanced Transmission Jammer Medium Regenerative Plating Scatter Rocket Array Micro-nuke Launcher Peak State ------------ > --- POWER ------------ Quantum Reactor > --- PROPULSION ------- Centrium Heavy Treads Centrium Heavy Treads Enhanced Flexi-carbon Leg > --- UTILITY ---------- Advanced Signal Interpreter Advanced Melee Analysis Suite Core Analyzer Armor Integrity Analyzer Improved Phase Shifter Medium Regenerative Plating Hacking Suite > --- WEAPON ----------- Cooled Plasma Cannon Companion Sword > --- INVENTORY -------- Advanced Sensor Array Centrium Medium Armor Plating Authchip [Propulsion] A0-MCA's Component Scanner Scatter Rocket Array [Rating: 102] Favorites ----------- Power Cooled Ion Engine Engine Cooled Ion Engine Power Core Light Fission Core Reactor Quantum Reactor Propulsion Light Treads Treads Light Treads Leg Enhanced Flexi-carbon Leg Hover Unit Antigrav System Flight Unit Improved Flight Unit Utility Core Analyzer Device Cooling System Storage Large Storage Unit Processor Core Analyzer Hackware Hacking Suite Protection Medium Armor Plating Weapon Advanced Beam Cannon Energy Gun Particle Gun Energy Cannon Advanced Beam Cannon Ballistic Gun Assault Rifle Launcher Scatter Rocket Array Impact Weapon Maul Slashing Weapon Companion Sword Special Melee Weapon Improved Datajack Build | -11 -10 -10 -9 -9 -9 -9 -6 -6 -6 -6 -6 -6 -6 -5 -4 -4 -4 ------- Run | Yrd Mat Min Mat Sto Rec Scr Fac Was Fac Ext Cet Arc Hub Fac Fac Was Fac Slots Evolved 12 | . . . 2 . . . 6 . . . . . . 2 2 . . Power 1 | . . . . . . . . . . . . . . . 1 . . Propulsion 4 | . . . 1 . . . 2 . . . . . . 1 . . . Utility 7 | . . . 1 . . . 4 . . . . . . 1 1 . . Weapon . | . . . . . . . . . . . . . . . . . . Parts Attached 167 | 7 8 . 27 15 3 10 26 . 9 20 11 4 4 10 8 1 4 Power 23 | 1 2 . 2 2 . 2 4 . 2 4 1 . . 2 1 . . Engine 15 | 1 2 . 2 2 . 1 2 . 1 3 . . . . 1 . . Core 7 | . . . . . . 1 2 . 1 1 . . . 2 . . . Reactor 1 | . . . . . . . . . . . 1 . . . . . . Propulsion 64 | 2 1 . 12 5 2 2 7 . 4 10 7 . 3 3 5 1 . Treads 29 | 2 1 . 11 5 2 . . . . 4 3 . . . 1 . . Leg 12 | . . . . . . . . . . 5 4 . 3 . . . . Wheel . | . . . . . . . . . . . . . . . . . . Hover 5 | . . . . . . . . . . . . . . . 4 1 . Flight 18 | . . . 1 . . 2 7 . 4 1 . . . 3 . . . Utility 57 | 1 3 . 6 2 . 4 14 . 2 6 3 4 1 5 2 . 4 Device 21 | . 2 . 2 1 . 1 4 . 2 2 1 . 1 3 . . 2 Storage 4 | 1 . . 2 . . 1 . . . . . . . . . . . Processor 14 | . . . . . . 1 6 . . 3 1 . . . 2 . 1 Hackware 7 | . . . . . . . 2 . . . . 3 . 2 . . . Protection 11 | . 1 . 2 1 . 1 2 . . 1 1 1 . . . . 1 Artifact . | . . . . . . . . . . . . . . . . . . Weapon 23 | 3 2 . 7 6 1 2 1 . 1 . . . . . . . . Energy Gun 5 | 2 1 . 2 . . . . . . . . . . . . . . Energy Cannon 8 | . . . 3 4 . . . . 1 . . . . . . . . Ballistic Gun 4 | 1 1 . 1 1 . . . . . . . . . . . . . Ballistic Cannon . | . . . . . . . . . . . . . . . . . . Launcher 3 | . . . 1 1 . . 1 . . . . . . . . . . Special Weapon . | . . . . . . . . . . . . . . . . . . Impact Weapon 1 | . . . . . 1 . . . . . . . . . . . . Slashing Weapon 1 | . . . . . . 1 . . . . . . . . . . . Piercing Weapon . | . . . . . . . . . . . . . . . . . . Special Melee Weapon 1 | . . . . . . 1 . . . . . . . . . . . Unidentified Prototypes 19 | . 1 . 5 3 . 1 6 . . . 3 . . . . . . Corrupted Parts 5 | . . . . . . . . . . 1 3 . . . . 1 . System Corruption 22 | . . . . . . . . . . 9 6 . . . . 7 . Parts Lost 46 | . 1 . 2 4 . . 1 . 2 14 2 1 1 8 . . 10 Power 6 | . . . . 1 . . . . 1 2 . . . 1 . . 1 Propulsion 13 | . . . . . . . . . . 4 1 . . 3 . . 5 Utility 20 | . . . . 1 . . . . 1 8 1 1 . 4 . . 4 Weapon 7 | . 1 . 2 2 . . 1 . . . . . 1 . . . . Highest Loss Streak 10 | . 1 . 2 1 . . 1 . 1 7 2 1 1 7 . . 10 To Critical Strikes . | . . . . . . . . . . . . . . . . . . Average Backups 8 | 2 6 8 13 14 15 12 6 5 4 4 5 5 5 4 2 5 5 Power . | . 1 1 1 . 1 . 1 . . . . . . . . . . Propulsion 2 | . . 3 3 5 6 4 . . . . . . . . . . . Utility 2 | . 3 4 2 2 2 2 2 2 2 2 3 4 4 3 1 3 3 Weapon 3 | . . . 6 5 6 4 2 2 1 1 1 1 1 1 1 2 2 Tool/Special . | . . . . . . . . . . . . . . . . . . Unused Backups 23 | . 3 . 10 1 1 3 . 1 . . . 1 . . 1 . 2 Power 2 | . 1 . . . . . . 1 . . . . . . . . . Propulsion 4 | . . . 2 1 . 1 . . . . . . . . . . . Utility 8 | . 2 . 3 . . 1 . . . . . 1 . . . . 1 Weapon 9 | . . . 5 . 1 1 . . . . . . . . 1 . 1 Tool/Special . | . . . . . . . . . . . . . . . . . . Average Slot Usage (%) 92 | . 92 100 99 99 100 99 96 100 97 81 72 91 99 68 52 70 68 Engine 7 | . 14 14 11 11 11 10 . . . 3 3 . . . 2 5 4 Core 1 | . . . . . . . 6 6 5 2 . . . 3 . . . Treads 17 | . 27 28 32 32 33 19 . . . 1 14 . . . 3 . . Leg 1 | . . . . . . . . . . 3 5 26 32 4 . . . Flight 9 | . . . . . . 13 32 33 33 22 2 . . 9 . . . Device 8 | . 2 13 11 11 11 11 9 6 6 4 2 1 . 3 4 5 5 Storage 7 | . 14 14 11 11 11 10 3 . . . . . . . . . . Processor 8 | . . . . . . . 20 20 20 20 22 24 20 17 22 26 27 Hackware 3 | . . . . . . . 5 13 13 7 6 9 20 15 5 5 4 Protection 7 | . 5 . 10 11 11 11 6 6 5 5 3 8 6 4 4 . . Energy Gun 2 | . 14 14 . . . . . . . . . . . . . . . Energy Cannon 9 | . . . 19 21 21 16 2 6 4 . . 6 6 . . . . Ballistic Gun 2 | . 13 14 1 . . . . . . . . . . . . . . Slashing Weapon 3 | . . . . . . 4 6 6 6 6 6 6 6 4 4 5 4 Peak Build Rating 102 | 6 11 11 23 24 21 35 70 70 70 64 102 87 94 93 78 79 89 Average Rating 36 | 5 7 11 20 21 20 25 58 70 64 53 75 85 91 58 56 73 72 On Entrance 44 | . 6 11 11 21 21 21 30 70 70 62 53 87 87 88 21 70 79 Avg Prop Armor Cover (%) 13 | . . . . . . . . . . 2 2 . . . 14 30 29 Naked Turns 12 | . . . . . . . . . . . . . . . . . 12 Heaviest Build 50 | 13 21 21 46 50 45 45 32 28 28 34 42 47 40 33 16 8 13 Greatest Support 180 | 40 40 40 60 60 60 60 29 29 29 60 180 112 140 140 44 58 58 Greatest Overweight (x) 5 | . . . . . . 2 1 . . 1 . . . 2 5 2 4 Average Overweight (x) . | . . . . . . . . . . . . . . . 2 . 1 Largest Inventory Capacity 15 | 8 8 8 15 15 15 15 8 5 5 5 5 5 5 5 5 5 5 Average Capacity 9 | 7 8 8 13 15 15 12 6 5 5 5 5 5 5 5 5 5 5 Most Carried 15 | 4 8 8 15 15 15 15 8 5 5 5 5 5 5 5 5 5 5 Average Carried 8 | 2 6 7 13 14 15 11 6 5 4 4 4 5 5 4 2 5 5 Final Capacity 15 | 8 8 8 15 15 15 8 5 5 5 5 5 5 5 5 5 5 5 Final Carried 15 | 4 8 8 15 15 15 8 5 5 5 5 5 5 5 5 5 5 5 Class Distribution -------------------- 51% | Mutant 20% | Scavenger-Mutant 8% | Hacker-Sprinter 5% | Commander-Mutant 4% | Scout 4% | Hacker-Mutant Dominant Class ---------------- Mutant | -10/Materials Mutant | -10/Mines Scavenger-Mutant | -9/Materials Mutant | -9/Storage Mutant | -9/Recycling Mutant | -9/Scraptown Scout | -6/Factory Hacker-Sprinter | -6/Waste Hacker-Sprinter | -6/Factory Commander-Mutant | -6/Extension Scavenger-Mutant | -6/Cetus Scavenger-Mutant | -6/Archives Scavenger-Mutant | -6/Hub_04(d) Hacker-Mutant | -5/Factory Mutant | -4/Factory Scavenger-Assassin | -4/Waste Scavenger-Assassin | -4/Factory Resources | -11 -10 -10 -9 -9 -9 -9 -6 -6 -6 -6 -6 -6 -6 -5 -4 -4 -4 ----------- Run | Yrd Mat Min Mat Sto Rec Scr Fac Was Fac Ext Cet Arc Hub Fac Fac Was Fac Matter Collected 3447 | 279 248 59 512 202 40 40 959 . 112 411 131 88 64 137 150 . 15 Remotely . | . . . . . . . . . . . . . . . . . . Salvage Created 9078 | 212 744 44 1721 1387 299 . 1475 . 236 1370 124 152 647 348 177 . 142 Parts 481 | 14 47 3 103 66 16 . 82 . 12 51 6 15 23 22 12 . 9 Haulers Intercepted 24 | . 2 . 6 5 . . 7 . 2 . . . 2 . . . . Recyclers Shooed 5 | . . . 2 1 1 . 1 . . . . . . . . . . Parts Field Recycled . | . . . . . . . . . . . . . . . . . . Retrieved Matter . | . . . . . . . . . . . . . . . . . . Parts Self-Destructed . | . . . . . . . . . . . . . . . . . . Prevented . | . . . . . . . . . . . . . . . . . . Parts Restored . | . . . . . . . . . . . . . . . . . . Kills | -11 -10 -10 -9 -9 -9 -9 -6 -6 -6 -6 -6 -6 -6 -5 -4 -4 -4 ------- Run | Yrd Mat Min Mat Sto Rec Scr Fac Was Fac Ext Cet Arc Hub Fac Fac Was Fac Combat Hostiles Destroyed 122 | . 19 2 33 19 3 . 16 . . 16 1 . . 8 2 . 3 Melee 33 | . . . . . . . 4 . . 16 1 . . 8 2 . 2 Guns 23 | . 19 2 2 . . . . . . . . . . . . . . Cannons 43 | . . . 22 18 3 . . . . . . . . . . . . AOE 19 | . . . 6 . . . 12 . . . . . . . . . 1 Classes Destroyed 18 | 3 3 1 4 . . . 6 . . 1 . . . . . . . Worker 18 | 2 1 . 4 2 . . 4 . . . . . 5 . . . . Builder 10 | . . . 2 1 . . 2 . 1 . . . 3 . 1 . . Tunneler 7 | 5 . . . . . . 2 . . . . . . . . . . Hauler 24 | . 2 . 6 5 . . 7 . 2 . . . 2 . . . . Recycler 14 | 1 . . 2 2 2 . 3 . . 2 . . 2 . . . . Mechanic 2 | . . . 1 . . . 1 . . . . . . . . . . Operator 9 | . . . . . . . 4 . . 1 . 4 . . . . . Drone 1 | . . . . . . . 1 . . . . . . . . . . Watcher 7 | . . . 1 1 . . 1 . 1 2 . . . . 1 . . Swarmer 20 | . 6 . 6 . . . 3 . . . . . . 4 . . 1 Grunt 50 | . 13 . 17 10 . . . . . 10 . . . . . . . Duelist 1 | . . . . . . . . . . 1 . . . . . . . Protector 2 | . . . . . . . 2 . . . . . . . . . . Sentry 27 | . . . 10 9 3 . 1 . . 3 . . . 1 . . . Demolisher 2 | . . 2 . . . . . . . . . . . . . . . Specialist 1 | . . . . . . . 1 . . . . . . . . . . Hunter 7 | . . . . . . . 4 . . 1 . . . . . . 2 Programmer 9 | . . . . . . . 4 . . . . . . 3 2 . . Cetus Guard 1 | . . . . . . . . . . . 1 . . . . . . Thug 1 | . . . . . . . . . . 1 . . . . . . . Best Kill Streak 14 | 5 6 2 8 5 1 . 14 . 1 5 1 4 9 4 2 . 2 Combat Bots Only 9 | . 6 2 6 4 1 . 9 . . 3 1 . . 4 2 . 2 Max Kills in Single Turn 9 | 2 1 1 3 1 1 . 5 . 1 1 1 1 9 1 1 . 1 Gunslinging . | . . . . . . . . . . . . . . . . . . Exploded 4 | . . . 3 . . . 4 . . . . . . . . . 1 Melee 1 | . . . . . . . 1 . . 1 1 . . 1 1 . 1 Uniques/NPCs Destroyed 1 | . . . . . . . . . . . 1 . . . . . . A7 (-6/Cetus) Combat | -11 -10 -10 -9 -9 -9 -9 -6 -6 -6 -6 -6 -6 -6 -5 -4 -4 -4 -------- Run | Yrd Mat Min Mat Sto Rec Scr Fac Was Fac Ext Cet Arc Hub Fac Fac Was Fac Hostile Shots Fired 948 | . 73 8 130 78 6 . 101 1 59 179 26 8 39 122 20 1 97 Missed 333 | . 16 . 36 24 3 . 69 1 27 67 4 4 14 34 8 1 25 Hits 615 | . 57 8 94 54 3 . 32 . 32 112 22 4 25 88 12 . 72 Melee 6 | . . . . . . . . . . 1 . . . 1 . . 4 Projectile 609 | . 57 8 94 54 3 . 32 . 32 111 22 4 25 87 12 . 68 AOE 8 | . . 8 . . . . . . . . . . . . . . . Critical Strikes 18 | . . . 2 3 . . . . 1 4 2 . 1 5 . . . Damage Taken 10404 | . 592 295 1214 920 43 . 524 . 428 1411 650 144 570 1698 250 . 1665 Core 3009 | . 64 112 149 42 . . 144 . 75 274 135 . 48 798 110 . 1058 Absorbed by Shields 228 | . . . . . . . . . . 203 25 . . . . . . Redirected to Shielding 22 | . . . . . . . 22 . . . . . . . . . . Regen/Repaired (Parts) 1177 | . 265 . 145 . . . . . 134 . 87 50 84 337 75 . . Core Remaining (%) 44 | 100 . 29 . . . 52 . . . . . . 20 20 . . . Volleys Fired 315 | 26 60 6 77 68 6 . 41 . 16 5 . 1 9 . . . . Largest 2 | 2 2 2 2 2 2 . 1 . 1 1 . 1 1 . . . . Hottest 136 | 60 85 85 136 136 136 . 50 . 105 50 . 35 35 . . . . Shots Fired 550 | 52 120 13 144 136 12 . 41 . 15 5 1 1 10 . . . . Gun 210 | 52 120 13 25 . . . . . . . . . . . . . . Cannon 325 | . . . 112 136 12 . 34 . 15 4 1 1 10 . . . . Launcher 15 | . . . 7 . . . 7 . . 1 . . . . . . . Special . | . . . . . . . . . . . . . . . . . . Kinetic 113 | 26 60 6 21 . . . . . . . . . . . . . . Thermal 406 | 26 58 7 102 136 12 . 34 . 15 4 1 1 10 . . . . Explosive 15 | . . . 7 . . . 7 . . 1 . . . . . . . Electromagnetic 16 | . 2 . 14 . . . . . . . . . . . . . . Robot Hit Streak 16 | 9 10 6 16 14 11 . 12 . 1 5 . . . . . . . Robot Miss Streak 15 | 2 4 2 3 4 . . 15 . . . . 1 2 . . . . Penetration Max . | . . . . . . . . . . . . . . . . . . Secondary Targets 1 | . 1 . . . . . . . . . . . . . . . . Max Gunslinging Chain 1 | . 1 . . . . . . . . . . . . . . . . Shots Hit Robots 492 | 36 72 8 101 80 10 1 43 . 9 67 20 4 2 24 7 . 8 Core Hits 318 | 12 34 6 54 29 4 . 102 . 3 32 6 3 15 10 4 . 4 Critical Kills 3 | . 1 . 1 1 . . . . . . . . . . . . . Critical Parts Destroyed . | . . . . . . . . . . . . . . . . . . Critical Strikes 7 | . 3 . 1 1 . . . . . 2 . . . . . . . Burn 2 | . 2 . . . . . . . . . . . . . . . . Meltdown 2 | . . . 1 1 . . . . . . . . . . . . . Destroy 1 | . 1 . . . . . . . . . . . . . . . . Melee Attacks 328 | . . . . . 1 1 122 . 32 77 22 4 6 37 9 . 17 Impact 1 | . . . . . 1 . . . . . . . . . . . . Slashing 324 | . . . . . . . 120 . 32 77 22 4 6 37 9 . 17 Piercing . | . . . . . . . . . . . . . . . . . . Sneak Attacks 49 | . . . . . . 1 15 . 3 11 8 4 2 4 1 . . Combat Hostiles 2 | . . . . . . . 1 . . . . . . 1 . . . Follow-up Attacks 1 | . . . . . . . . . . . . . . 1 . . . Damage Inflicted 20260 | 372 930 112 3045 1741 245 . 5008 . 581 3387 979 465 1137 1234 362 . 662 Guns 1692 | 372 918 110 292 . . . . . . . . . . . . . . Cannons 4044 | . . . 1868 1726 221 . . . 66 129 . . 34 . . . . Explosions 4651 | . . . 798 . . . 2573 . . 107 . . 943 . . . 230 Melee 9635 | . . . . . . . 2435 . 515 3151 979 465 160 1226 362 . 342 Ramming 238 | . 12 2 87 15 24 . . . . . . . . 8 . . 90 Kinetic 712 | 130 313 45 224 . . . . . . . . . . . . . . Thermal 5263 | 242 592 65 1627 1726 221 . 331 . 66 129 . . 34 . . . 230 Explosive 3147 | . . . 798 . . . 2242 . . 107 . . . . . . . Electromagnetic 1265 | . 13 . 309 . . . . . . . . . 943 . . . . Impact . | . . . . . . . . . . . . . . . . . . Slashing 9635 | . . . . . . . 2435 . 515 3151 979 465 160 1226 362 . 342 Piercing . | . . . . . . . . . . . . . . . . . . Highest Corruption 26 | . 3 3 . . . . 4 13 13 18 24 24 26 12 2 16 23 Average Corruption 9 | . 2 3 . . . . 3 9 10 10 21 24 24 6 1 10 16 Corruption Purged 5 | . . . . . . . . . 5 . . . . . . . . Corruption Blocked . | . . . . . . . . . . . . . . . . . . Effects 203 | . 6 22 . . . . 26 3 23 47 25 8 20 3 2 4 14 Message Errors 50 | . . 5 . . . . 7 1 9 12 4 1 3 1 1 1 5 Matter Fused 42 | . . 5 . . . . 7 . 3 8 5 2 7 2 1 . 2 Heat Flow Errors 22 | . . 4 . . . . 5 . 1 5 2 2 1 . . 1 1 Energy Discharges 23 | . 2 4 . . . . 1 . 1 8 3 2 1 . . . 1 Parts Rejected 5 | . . . . . . . 1 . . 3 1 . . . . . . Data Loss (minor) 27 | . 2 1 . . . . 5 . 4 5 4 1 3 . . . 2 Data Loss (major) 11 | . . 1 . . . . . . 3 3 2 . 1 . . . 1 Misfires 4 | . 1 1 . . . . . . . . 1 . 1 . . . . Alerts 3 | . . 1 . . . . . . . 1 1 . . . . . . Misdirections 14 | . . . . . . . . 2 1 2 2 . 3 . . 2 2 Weapon Failures 2 | . 1 . . . . . . . 1 . . . . . . . . Overload Shots 2 | . . . . . . . . . 2 . . . . . . . . Overflow Damage 935 | . . . 38 39 . . 393 . 36 102 24 61 41 108 19 . 74 Projectiles 112 | . . . 33 39 . . . . 26 14 . . . . . . . Explosions 174 | . . . 5 . . . 41 . . 17 . . 41 . . . 70 Melee 649 | . . . . . . . 352 . 10 71 24 61 . 108 19 . 4 Knockbacks 1 | . . . . . 1 . . . . . . . . . . . . Impact 1 | . . . . . 1 . . . . . . . . . . . . Kinetic . | . . . . . . . . . . . . . . . . . . Secondary . | . . . . . . . . . . . . . . . . . . Self-Inflicted Damage 452 | . . . . . . . 60 . . . . . 190 . . . 202 Shots 7 | . . . . . . . 4 . . . . . 2 . . . 1 Rammed 20 | . 4 2 10 1 3 . . . . . . . . . . . . Targets Rammed 29 | . 5 2 14 2 5 . . . . . . . . 1 . . . Kicked 1 | . . . . . . . . . . . . . . 1 . . . Crushed 8 | . 1 . 4 1 2 . . . . . . . . . . . . Highest Temperature 281 | 60 271 186 204 201 39 . 281 80 109 272 169 263 164 . . 235 199 Average Temperature 58 | 23 72 65 51 49 18 . 57 42 29 109 77 142 82 . . 134 70 Received Heat Transfer 2154 | . 249 . 567 384 27 . 54 . 100 446 111 18 39 120 . . 39 Siege Activations . | . . . . . . . . . . . . . . . . . . Martial Activations . | . . . . . . . . . . . . . . . . . . Shielding Activations . | . . . . . . . . . . . . . . . . . . Robots Disrupted 3 | . . . . . . . 1 . . 1 . . . 1 . . . Combat Hostiles 2 | . . . . . . . . . . 1 . . . 1 . . . Robots Corrupted 1 | . . . 1 . . . . . . . . . . . . . . Combat Hostiles 1 | . . . 1 . . . . . . . . . . . . . . Parts Fried 11 | . . . 2 . . . . . . 2 . . 7 . . . . Impact Corruptions . | . . . . . . . . . . . . . . . . . . Robots Melted 3 | . . . 2 1 . . . . . . . . . . . . . Combat Hostiles 3 | . . . 2 1 . . . . . . . . . . . . . Parts Melted 21 | . 1 . 10 7 2 . . . . 1 . . . . . . . Heat Transferred 9005 | 550 1472 148 2775 2960 370 . 250 . 80 200 . . 50 . . . 150 Parts Sabotaged . | . . . . . . . . . . . . . . . . . . Parts Stolen . | . . . . . . . . . . . . . . . . . . Parts Stripped . | . . . . . . . . . . . . . . . . . . Power Chain Reactions . | . . . . . . . . . . . . . . . . . . Alert | -11 -10 -10 -9 -9 -9 -9 -6 -6 -6 -6 -6 -6 -6 -5 -4 -4 -4 ------- Run | Yrd Mat Min Mat Sto Rec Scr Fac Was Fac Ext Cet Arc Hub Fac Fac Was Fac Maximum Alert Level 4 | . . . 2 2 . . 2 1 1 3 2 1 4 2 1 . . Low Security (%) 54 | 100 100 100 43 . 100 . 52 50 87 19 . 25 25 . 82 100 100 Level 1 26 | . . . 24 72 . . 39 50 12 55 91 74 10 . 17 . . Level 2 18 | . . . 32 27 . . 8 . . 21 7 . 46 100 . . . Level 3 . | . . . . . . . . . . 4 . . 12 . . . . Level 4 . | . . . . . . . . . . . . . 4 . . . . Level 5 . | . . . . . . . . . . . . . . . . . . High Security . | . . . . . . . . . . . . . . . . . . Max Security . | . . . . . . . . . . . . . . . . . . Peak Influence 1212 | 15 176 58 546 456 186 . 587 205 284 891 494 236 1212 629 242 12 82 Initial 583 | . . 58 . 228 166 . . 205 115 130 494 126 74 583 242 12 . Average 202 | 3 61 7 249 320 62 . 169 195 138 308 319 204 501 530 117 4 8 Influence Increases 8697 | 40 603 62 1184 718 279 . 1351 . 491 1539 315 188 1368 354 64 . 141 Destroy 0b10 Robot/C 3400 | . 380 40 660 380 60 . 260 . . 740 160 80 380 160 40 . 60 Destroy 0b10 Robot/NC 525 | 40 15 . 80 55 10 . 140 . 20 45 10 20 80 . 10 . . Destroy Leader 746 | . 74 10 204 152 . . 64 . 6 86 . . 88 40 12 . 10 Allied During Kill 932 | . . . . . . . 3 . . 477 105 72 275 . . . . Successful Hack 423 | . 41 12 37 37 58 . 113 . 35 42 8 . 24 16 . . . Select Force Hacks 270 | . 60 . 60 . 150 . . . . . . . . . . . . Disable Machine 630 | . . . 30 60 . . 105 . 30 30 . 15 315 . . . 45 Destroy Structure 601 | . 3 . 53 4 1 . 171 . 40 59 17 1 206 18 2 . 26 Partial Spotted 120 | . . . . . . . 45 . 45 15 15 . . . . . . Lose Combat Pursuer 1050 | . 30 . 60 30 . . 450 . 315 45 . . . 120 . . . Influence Decreases 8625 | 40 451 214 642 832 707 . 764 422 390 922 883 289 390 1051 523 36 69 Entered New Map 2842 | . . 94 . 314 262 . . 382 50 136 389 189 140 609 253 24 . Time Decay 4561 | 40 446 120 622 478 350 . 504 20 310 486 254 70 180 362 270 10 39 Search Patrol Dispatched 200 | . . . . . . . 200 . . . . . . . . . . Lost Part 385 | . 5 . 20 40 . . 10 . 20 140 20 10 10 80 . . 30 Lost Ally 542 | . . . . . . . 50 20 10 160 220 20 60 . . 2 . Purge Threat 95 | . . . . . 95 . . . . . . . . . . . . Squads Dispatched 63 | . 3 . 6 5 . . 20 . 12 3 . . 7 4 1 . 2 Investigation 31 | . 2 . 3 1 . . 9 . 9 2 . . 2 1 . . 2 Extermination 12 | . . . . . . . 5 . 3 . . . 1 2 1 . . Reinforcement 14 | . 1 . 3 2 . . 3 . . 1 . . 4 . . . . Assault 2 | . . . . 1 . . . . . . . . . 1 . . . Garrison 4 | . . . . 1 . . 3 . . . . . . . . . . Intercept . | . . . . . . . . . . . . . . . . . . Searches Triggered 2 | . . . . . . . 2 . . . . . . . . . . Construction Impeded 2 | . . . . . . . 1 . . 1 . . . . . . . Haulers Reinforced . | . . . . . . . . . . . . . . . . . . Active Scanning Responses . | . . . . . . . . . . . . . . . . . . Cargo Convoy Interrupts 1 | . . . . . . . 1 . . . . . . . . . . Stealth | -11 -10 -10 -9 -9 -9 -9 -6 -6 -6 -6 -6 -6 -6 -5 -4 -4 -4 --------- Run | Yrd Mat Min Mat Sto Rec Scr Fac Was Fac Ext Cet Arc Hub Fac Fac Was Fac Distress Signals 18 | . 1 . 4 1 . . 3 . 1 2 2 . 4 . . . . Communications Jammed . | . . . . . . . . . . . . . . . . . . Distress Signals . | . . . . . . . . . . . . . . . . . . Times Spotted 309 | . 32 2 46 28 1 . 55 6 23 41 11 4 22 23 5 5 5 Peak Tracking Total 8 | . 4 2 6 4 1 . 8 6 5 6 5 2 6 8 2 5 3 Tactical Retreats 36 | . 2 . 2 1 . . 14 . 11 3 . . . 3 . . . Traps | -11 -10 -10 -9 -9 -9 -9 -6 -6 -6 -6 -6 -6 -6 -5 -4 -4 -4 ------- Run | Yrd Mat Min Mat Sto Rec Scr Fac Was Fac Ext Cet Arc Hub Fac Fac Was Fac Traps Triggered 22 | . 3 . 1 6 . . 6 . 2 1 . . 1 . 1 . 1 Indirectly . | . . . . . . . . . . . . . . . . . . Trap Hack Attempts . | . . . . . . . . . . . . . . . . . . Triggered . | . . . . . . . . . . . . . . . . . . Disarmed . | . . . . . . . . . . . . . . . . . . Reprogrammed . | . . . . . . . . . . . . . . . . . . Reused . | . . . . . . . . . . . . . . . . . . Traps Extracted . | . . . . . . . . . . . . . . . . . . Installed . | . . . . . . . . . . . . . . . . . . Triggered . | . . . . . . . . . . . . . . . . . . Machines | -11 -10 -10 -9 -9 -9 -9 -6 -6 -6 -6 -6 -6 -6 -5 -4 -4 -4 ---------- Run | Yrd Mat Min Mat Sto Rec Scr Fac Was Fac Ext Cet Arc Hub Fac Fac Was Fac Machines Disabled 43 | . . . 2 4 . . 7 . 2 3 . 1 21 . . . 3 Max in Single Turn 11 | . . . 1 1 . . 2 . 1 1 . 1 11 . . . 2 Garrison Access 3 | . . . . 1 . . 1 . . . . . . 1 . . . Network Hub 2 | . . . . . . . . . . . . . 2 . . . . Energy Cycler 1 | . . . . . . . . . . 1 . . . . . . . Machines Repaired . | . . . . . . . . . . . . . . . . . . Machines Dismantled . | . . . . . . . . . . . . . . . . . . Machines Sabotaged . | . . . . . . . . . . . . . . . . . . Overloaded Fab Kills . | . . . . . . . . . . . . . . . . . . Hacking | -11 -10 -10 -9 -9 -9 -9 -6 -6 -6 -6 -6 -6 -6 -5 -4 -4 -4 --------- Run | Yrd Mat Min Mat Sto Rec Scr Fac Was Fac Ext Cet Arc Hub Fac Fac Was Fac Machines Accessed 129 | . 10 2 14 10 11 5 33 . 21 9 1 . 3 5 1 . 4 Terminals 78 | . 7 2 10 9 6 . 18 . 10 9 1 . 3 2 . . 1 Fabricators 5 | . . . . . . . 3 . 2 . . . . . . . . Repair Stations 4 | . 1 . 1 . . . . . 1 . . . . . 1 . . Recycling Units 27 | . 2 . 2 . 5 . 8 . 7 . . . . 1 . . 2 Scanalyzers 6 | . . . 1 . . . 2 . 1 . . . . 1 . . 1 Garrison Access 4 | . . . . 1 . . 2 . . . . . . 1 . . . Total Hacks 386 | . 45 5 40 30 41 19 91 . 46 18 2 . 7 23 2 . 17 Successful 215 | . 26 3 25 15 21 19 48 . 32 6 1 . 3 13 . . 3 Failed 168 | . 18 2 14 15 20 . 43 . 14 12 1 . 4 9 2 . 14 Catastrophic 28 | . 1 . 1 1 4 . 11 . 1 3 . . 1 . 2 . 3 Database Lockouts 3 | . 1 . 1 . . . . . . . . . . 1 . . . Manual 213 | . 27 6 27 19 29 . 44 . 28 9 1 . 5 7 . . 11 Terminals 249 | . 29 5 31 29 27 . 53 . 28 18 2 . 7 14 . . 6 Fabricators 13 | . . . . . . . 7 . 6 . . . . . . . . Repair Stations 16 | . 9 . 2 . . . . . 3 . . . . . 2 . . Recycling Units 55 | . 7 . 4 . 14 . 13 . 7 . . . . 2 . . 8 Scanalyzers 27 | . . . 3 . . . 13 . 2 . . . . 6 . . 3 Garrison Access 7 | . . . . 1 . . 5 . . . . . . 1 . . . Terminal Hacks 75 | . 4 3 4 8 6 19 12 . 10 2 1 . 2 4 . . . Record 12 | . . . . . . 12 . . . . . . . . . . . Part Schematic 6 | . . . . . 3 . 2 . . . . . 1 . . . . Robot Analysis 12 | . 2 3 1 . 1 5 . . . . . . . . . . . Prototype ID Bank 4 | . . . 1 1 . . 1 . . 1 . . . . . . . Open Door 7 | . . . . 4 . 1 . . 1 . 1 . . . . . . Branch Access Points 4 | . 1 . . . . . 1 . 1 . . . . 1 . . . Terminal Index 8 | . 1 . 1 1 1 . 1 . 1 . . . 1 1 . . . Fabricator Index 1 | . . . . . . . . . 1 . . . . . . . . Recycling Unit Index 1 | . . . . . . . . . 1 . . . . . . . . Unreport Threat 1 | . . . . . 1 . . . . . . . . . . . . Locate Traps 1 | . . . . . . . 1 . . . . . . . . . . Maintenance Status 1 | . . . . . . . . . . 1 . . . . . . . Recall Investigation 2 | . . . . . . . 1 . 1 . . . . . . . . Recall Extermination 3 | . . . . . . . 2 . 1 . . . . . . . . Recall Reinforcements 3 | . . . . 1 . . 1 . 1 . . . . . . . . Hauler Manifests 5 | . . . 1 1 . . 1 . 1 . . . . 1 . . . Registered Components 3 | . . . . . . . 1 . 1 . . . . 1 . . . Proto ID Catalog 1 | . . . . . . 1 . . . . . . . . . . . Fabricator Hacks 4 | . . . . . . . 2 . 2 . . . . . . . . Network Status 3 | . . . . . . . 2 . 1 . . . . . . . . Load Schematic 1 | . . . . . . . . . 1 . . . . . . . . Repair Station Hacks 12 | . 8 . 2 . . . . . 2 . . . . . . . . Scan Component 6 | . 4 . 1 . . . . . 1 . . . . . . . . Repair 6 | . 4 . 1 . . . . . 1 . . . . . . . . Recycling Unit Hacks 9 | . 2 . 2 . 3 . . . . . . . . 1 . . 1 Retrieve Components 9 | . 2 . 2 . 3 . . . . . . . . 1 . . 1 Scanalyzer 20 | . . . 3 . . . 12 . 2 . . . . 3 . . . Insert Component 7 | . . . 1 . . . 4 . 1 . . . . 1 . . . Analyze 8 | . . . 1 . . . 5 . 1 . . . . 1 . . . Retrieve Study 5 | . . . 1 . . . 3 . . . . . . 1 . . . Garrison Access Hacks 3 | . . . . 1 . . 1 . . . . . . 1 . . . Seal Access 3 | . . . . 1 . . 1 . . . . . . 1 . . . Unauthorized Hacks 92 | . 12 . 14 6 12 . 21 . 16 4 . . 1 4 . . 2 Terminals 61 | . 10 . 12 6 7 . 12 . 6 4 . . 1 3 . . . Track 2 | . . . 1 1 . . . . . . . . . . . . . Assimilate 7 | . 1 . . . . . 5 . 1 . . . . . . . . Botnet 21 | . 3 . 4 2 2 . 3 . 3 3 . . . 1 . . . Operators 9 | . 1 . 1 1 . . 1 . 2 1 . . 1 1 . . . Skim 22 | . 5 . 6 2 5 . 3 . . . . . . 1 . . . Fabricators 3 | . . . . . . . 1 . 2 . . . . . . . . Haulers 2 | . . . . . . . 1 . 1 . . . . . . . . Recompile 1 | . . . . . . . . . 1 . . . . . . . . Repair Stations 1 | . . . . . . . . . 1 . . . . . . . . Patch 1 | . . . . . . . . . 1 . . . . . . . . Recycling Units 27 | . 2 . 2 . 5 . 8 . 7 . . . . 1 . . 2 Tunnel 9 | . 2 . 2 . 5 . . . . . . . . . . . . Fedlink 18 | . . . . . . . 8 . 7 . . . . 1 . . 2 Scanalyzers . | . . . . . . . . . . . . . . . . . . Garrison Access . | . . . . . . . . . . . . . . . . . . Data Cores Recovered 2 | . . . . . . . 2 . . . . . . . . . . Used . | . . . . . . . . . . . . . . . . . . Hacking Detections 91 | . 8 2 11 7 8 . 25 . 11 9 1 . 3 2 1 . 3 Full Trace Events 7 | . . . 1 1 2 . . . . 2 . . 1 . . . . Feedback Events 1 | . . . . . . . . . . 1 . . . . . . . Corruption 1 | . . . . . . . . . . 1 . . . . . . . Feedback Blocked . | . . . . . . . . . . . . . . . . . . Robot Schematics Acquired . | . . . . . . . . . . . . . . . . . . Robots Built . | . . . . . . . . . . . . . . . . . . Authchips . | . . . . . . . . . . . . . . . . . . Time . | . . . . . . . . . . . . . . . . . . Total Robot Build Rating . | . . . . . . . . . . . . . . . . . . Part Schematics Acquired 13 | . . . 1 . 3 . 6 . 1 . . . 1 1 . . . Parts Built . | . . . . . . . . . . . . . . . . . . Authchips . | . . . . . . . . . . . . . . . . . . Time . | . . . . . . . . . . . . . . . . . . Total Part Build Rating . | . . . . . . . . . . . . . . . . . . Part Studies Acquired 5 | . . . 1 . . . 3 . . . . . . 1 . . . Parts Repaired 6 | . 4 . 1 . . . . . 1 . . . . . . . . Time 192 | . 104 . 38 . . . . . 50 . . . . . . . . Parts Recycled . | . . . . . . . . . . . . . . . . . . Recycled Matter . | . . . . . . . . . . . . . . . . . . Retrieved Matter . | . . . . . . . . . . . . . . . . . . Retrieved Components 42 | . 12 . 19 . 8 . . . . . . . . 2 . . 1 Parts Scanalyzed 7 | . . . 1 . . . 4 . 1 . . . . 1 . . . Part Schematics Acquired 7 | . . . 1 . . . 4 . 1 . . . . 1 . . . Parts Damaged 1 | . . . . . . . 1 . . . . . . . . . . Bothacking | -11 -10 -10 -9 -9 -9 -9 -6 -6 -6 -6 -6 -6 -6 -5 -4 -4 -4 ------------ Run | Yrd Mat Min Mat Sto Rec Scr Fac Was Fac Ext Cet Arc Hub Fac Fac Was Fac Used RIF Installer . | . . . . . . . . . . . . . . . . . . Robots Hacked 2 | . . . . . . 1 1 . . . . . . . . . . Non-combat 1 | . . . . . . . 1 . . . . . . . . . . Combat 1 | . . . . . . 1 . . . . . . . . . . . Robot Hacks Applied 2 | . . . . . . 1 1 . . . . . . . . . . parse_system 1 | . . . . . . 1 . . . . . . . . . . . find_chute 1 | . . . . . . . 1 . . . . . . . . . . Relay Couplers Released . | . . . . . . . . . . . . . . . . . . Fabnet Peak Effective % . | . . . . . . . . . . . . . . . . . . Robots Rewired 18 | . . . . . . . . . . 18 . . . . . . . Allies Hacked . | . . . . . . . . . . . . . . . . . . Hacks Repelled . | . . . . . . . . . . . . . . . . . . Allies | -11 -10 -10 -9 -9 -9 -9 -6 -6 -6 -6 -6 -6 -6 -5 -4 -4 -4 -------- Run | Yrd Mat Min Mat Sto Rec Scr Fac Was Fac Ext Cet Arc Hub Fac Fac Was Fac Total Allies 41 | . . . . . . . 14 1 1 19 5 . . . . 1 . Largest Group 12 | . . . . . . . 5 1 1 12 11 4 3 . . 1 . Highest-Rated Group 500 | . . . . . . . 121 31 26 447 500 308 288 . . 46 . Highest-Rated Ally 159 | . . . . . . . 31 31 26 159 143 96 96 . . 46 . Total Orders 1 | . . . . . . . 1 . . . . . . . . . . STAY 1 | . . . . . . . 1 . . . . . . . . . . Ally Attacks 369 | . . . . . . . 12 13 . 196 53 15 70 . . 10 . Total Damage 9735 | . . . . . . . 153 186 . 3623 2216 641 2743 . . 173 . Kills 62 | . . . . . . . 1 . . 25 9 4 23 . . . . Allies Corrupted . | . . . . . . . . . . . . . . . . . . Allies Melted . | . . . . . . . . . . . . . . . . . . Intel | -11 -10 -10 -9 -9 -9 -9 -6 -6 -6 -6 -6 -6 -6 -5 -4 -4 -4 ------- Run | Yrd Mat Min Mat Sto Rec Scr Fac Was Fac Ext Cet Arc Hub Fac Fac Was Fac Active Infowar (turns) 5361 | . 257 1144 22 . . 28 1668 40 644 . . . 2 640 586 60 270 Optics 1523 | . . . . . . . 1032 . . . . . . . 161 60 270 Sensors 3287 | . . . . . . . 1330 40 644 . . . . 640 485 . 148 IFF 360 | . . . . . . 28 332 . . . . . . . . . . Traps 2 | . . . . . . . . . . . . . 2 . . . . Seismic 1423 | . 257 1144 22 . . . . . . . . . . . . . . Robot Analysis Total 12 | . 2 3 1 . 1 5 . . . . . . . . . . . Derelict Logs Recovered 2 | . . 2 . . . . . . . . . . . . . . . Drone Launches . | . . . . . . . . . . . . . . . . . . Drone Recoveries . | . . . . . . . . . . . . . . . . . . Exploration | -11 -10 -10 -9 -9 -9 -9 -6 -6 -6 -6 -6 -6 -6 -5 -4 -4 -4 ------------- Run | Yrd Mat Min Mat Sto Rec Scr Fac Was Fac Ext Cet Arc Hub Fac Fac Was Fac Turns Passed 16402 | 178 1365 1192 2209 1221 1121 2636 1677 40 682 1262 544 143 371 833 586 60 282 Spaces Moved 13371 | 61 624 546 1126 599 676 1663 3545 134 1617 953 301 94 272 631 268 87 174 Core 443 | 5 . . . . . . . . . . . . . 137 145 18 138 Treads 4885 | 56 624 546 1126 599 676 950 . . . 76 232 . . . . . . Legs 649 | . . . . . . . . . . 150 69 94 272 64 . . . Wheels . | . . . . . . . . . . . . . . . . . . Hover 228 | . . . . . . . . . . . . . . . 123 69 36 Flight 7166 | . . . . . . 713 3545 134 1617 727 . . . 430 . . . Fastest Speed 26 | 50 160 160 160 160 160 104 26 26 26 27 120 120 120 32 48 44 44 Average Speed 97 | 150 160 160 160 160 160 153 27 26 27 83 150 120 120 108 193 68 125 Slowest Speed 300 | 160 160 160 160 160 160 174 102 26 28 240 160 120 120 192 300 150 250 Overloaded Moves . | . . . . . . . . . . . . . . . . . . Propulsion Burnouts . | . . . . . . . . . . . . . . . . . . Robots Hopped 47 | . . . . . . . 23 . 16 2 2 . . 4 . . . Potential Cave-ins 2 | . . . . . . . 2 . . . . . . . . . . Cave-ins Triggered . | . . . . . . . . . . . . . . . . . . Exploration Rate (%) 63 | 4 93 96 97 84 98 85 75 95 43 89 63 74 37 13 9 83 6 Regions Visited 17 Branch Regions 8 Pre-discovered Areas 16 | . 2 3 4 1 5 . 1 . . . . . . . . . . Known Exits Taken 10 | . 1 1 1 1 . . . . 1 1 1 1 1 1 . . . Unknown Exits Taken 3 | 1 . . . . 1 1 . . . . . . . . . . . Scrap Searched 7 | . . 1 . . . 6 . . . . . . . . . . . Spaces Dug 182 | . . . 22 . 1 . 92 . 29 24 . . 2 9 1 . 2 Terrain Destroyed 668 | . . . 54 . 1 . 226 . 36 24 1 . 303 9 1 . 13 Melee 111 | . . . . . 1 . 70 . 23 3 . . 2 9 1 . 2 Projectile 52 | . . . 1 . . . 33 . 13 . 1 . 4 . . . . AOE 505 | . . . 53 . . . 123 . . 21 . . 297 . . . 11 Terrain Rammed 13 | . . . . . . . . . . . . . . . . . 13 Walls Destroyed . | . . . . . . . . . . . . . . . . . . Machines Disabled . | . . . . . . . . . . . . . . . . . . Actions | -11 -10 -10 -9 -9 -9 -9 -6 -6 -6 -6 -6 -6 -6 -5 -4 -4 -4 --------- Run | Yrd Mat Min Mat Sto Rec Scr Fac Was Fac Ext Cet Arc Hub Fac Fac Was Fac Total 15704 | 97 879 852 1387 727 699 1756 3973 138 1781 1300 354 116 297 728 322 87 211 Wait 1059 | . 156 293 82 21 4 50 146 3 94 125 12 10 5 32 23 . 3 Move 13266 | 60 623 545 1125 598 675 1662 3499 133 1587 948 296 93 271 623 268 86 174 Hop 43 | . . . . . . . 23 . 13 2 2 . . 3 . . . Pick Up 76 | 3 10 2 21 6 1 11 9 1 3 2 1 1 . 1 4 . . Fast Attach 83 | 7 7 . 3 2 . 3 9 . 3 16 12 3 1 5 8 1 3 Attach 41 | . 2 . 2 4 . 2 11 . 3 4 1 . . 7 5 . . Detach 30 | 1 2 . . . . 2 8 . 3 3 . 1 . 8 2 . . Swap 133 | . 6 2 35 16 4 9 33 . 5 12 1 1 4 4 . . 1 Drop 115 | . 8 2 28 10 3 16 12 1 7 6 7 2 1 8 3 . 1 Fire 315 | 26 60 6 77 68 6 . 41 . 16 5 . 1 9 . . . . Melee 323 | . . . . . 1 1 122 . 32 73 22 4 6 36 9 . 17 Ram 12 | . . . . . . . . . . . . . . . . . 12 Kick 1 | . . . . . . . . . . . . . . 1 . . . Crush 28 | . 5 2 14 2 5 . . . . . . . . . . . . Escape Stasis 88 | . . . . . . . 60 . 15 13 . . . . . . . Rewire 91 | . . . . . . . . . . 91 . . . . . . . Trap . | . . . . . . . . . . . . . . . . . . Miscellaneous . | . . . . . . . . . . . . . . . . . . Route ------- -11/Scrapyard -10/Materials (discovered 5 exits: *Mat x3 / *Min / Sub) -10/Mines (discovered 2 exits: *Mat / *Sub) -9/Materials (discovered 7 exits: *Mat x3 / [*Min x2] / *Sto x2) -9/Storage (discovered 2 exits: *Mat / *Rec) -9/Recycling (discovered 2 exits: *Fac / *Scr) -9/Scraptown (discovered 2 exits: *Fac x2) -6/Factory (discovered 6 exits: *Fac x2 / *Low x2 / *Ext x2) -6/Waste -6/Factory (discovered 5 exits: *Fac / *Low x2 / *Ext x2) -6/Extension (discovered 2 exits: *Fac / *Cet) -6/Cetus (discovered 2 exits: *Fac / *Arc) -6/Archives (discovered 2 exits: *Hub x2) -6/Hub_04(d) -5/Factory (discovered 3 exits: *Fac / Upp x2) -4/Factory -4/Waste -4/Factory History --------- Turn | Location | Event 32 | -11/Scrapyard | Discovered new exit (range 14) 179 | -11/Scrapyard | Entered Materials 304 | -10/Materials | Build established: Mutant 506 | -10/Materials | Discovered new exit (range 10) 826 | -10/Materials | Discovered new exit (range 15) 884 | -10/Materials | Identified exit to Subcaves 884 | -10/Materials | Identified exit to Materials 931 | -10/Materials | Learned location of 1 exit from Storage 966 | -10/Materials | Learned 4 Subcaves zone layouts 993 | -10/Materials | Identified exit to Mines 1034 | -10/Materials | Learned Materials stockpile data 1053 | -10/Materials | Central database locked down 1205 | -10/Materials | Repaired Lgt. Treads 1232 | -10/Materials | Repaired Lgt. Treads 1260 | -10/Materials | Repaired Lgt. Treads 1287 | -10/Materials | Repaired Assault Rifle 1544 | -10/Materials | Entered Mines 1616 | -10/Mines | Learned location of Storage (-9) 1881 | -10/Mines | Assembled infested the area 2329 | -10/Mines | Core integrity fell below 50% 2547 | -10/Mines | Discovered exit to Subcaves (range 5) 2662 | -10/Mines | Discovered exit to Materials (range 15) 2736 | -10/Mines | Entered Materials 2736 | -9/Materials | Evolved 2 slots: Propulsion x1, Utility x1 3076 | -9/Materials | Build established: Scavenger-Mutant 3218 | -9/Materials | Discovered new exit (range 15) 3640 | -9/Materials | Repaired Imp. Light Armor Plating 3719 | -9/Materials | Discovered new exit (range 6) 4095 | -9/Materials | Discovered new exit (range 15) 4138 | -9/Materials | Learned Storage emergency access door positions 4185 | -9/Materials | Learned location of 1 exit from Recycling 4224 | -9/Materials | Identified exit to Storage 4279 | -9/Materials | Identified exit to Materials 4300 | -9/Materials | Loaded intel: 2 recycling unit locations 4305 | -9/Materials | Central database locked down 4331 | -9/Materials | Learned Storage stockpile data 4521 | -9/Materials | Discovered new exit (range 13) 4869 | -9/Materials | Discovered new exit (range 12) 4945 | -9/Materials | Entered Storage 4946 | -9/Storage | Identified exit to Recycling 5218 | -9/Storage | Garrison activated, responded to threat 5223 | -9/Storage | Build established: Mutant 5612 | -9/Storage | Discovered exit to Materials (range 15) 5641 | -9/Storage | Learned location of Armory (-3) 6139 | -9/Storage | Found Prototype Launcher 6139 | -9/Storage | Identified Scatter Rocket Array 6145 | -9/Storage | First assault squad dispatched 6160 | -9/Storage | Used back door to open Recycling access 6166 | -9/Storage | Entered Recycling 6167 | -9/Recycling | Identified exit to Factory 7249 | -9/Recycling | Scanned before Scraplab entrance 7271 | -9/Recycling | Entered Scraplab 7284 | -9/Recycling | Discovered new exit (range 2) 7287 | -9/Recycling | Entered Scraptown 7323 | -9/Scraptown | Heard Great Nut preacher, LISTEN AND RECITE! 7484 | -9/Scraptown | Visited SPCMW 7516 | -9/Scraptown | Visited Fellowship of the Rings 7547 | -9/Scraptown | Visited Cave Peace 7563 | -9/Scraptown | Visited The Evicted 7590 | -9/Scraptown | Visited Awakened 7607 | -9/Scraptown | Visited Cyclists 7631 | -9/Scraptown | Visited IN-MT5's Study 7782 | -9/Scraptown | Discovered new exit (range 13) 8176 | -9/Scraptown | Visited UFD Registry 8182 | -9/Scraptown | Registered with UFD as "Fluxboard" 8213 | -9/Scraptown | Visited Science Testing Area 8240 | -9/Scraptown | Visited A0-MCA Data Center 8249 | -9/Scraptown | Given a B+ rating by A0-MCA 8255 | -9/Scraptown | Found A0-MCA's Component Scanner 8286 | -9/Scraptown | Visited Supply Room 8441 | -9/Scraptown | Visited DA-N13 Charitable Foundation 8456 | -9/Scraptown | Found DCF Scrap (29 items) 8492 | -9/Scraptown | Visited Scrap Suit Storage 8513 | -9/Scraptown | Visited Scrapoid Pod Storage 8532 | -9/Scraptown | Visited Science Guys 8584 | -9/Scraptown | Visited Junk Repository 8611 | -9/Scraptown | Visited Analyses Database 8659 | -9/Scraptown | Visited Sword Containment 8677 | -9/Scraptown | Found Prototype Slashing Weapon 8756 | -9/Scraptown | Identified Companion Sword 9844 | -9/Scraptown | Met Optimus 9844 | -9/Scraptown | Accepted into 0bPrime 9904 | -9/Scraptown | Discovered new exit (range 5) 9923 | -9/Scraptown | Entered Factory 9923 | -6/Factory | Evolved 6 slots: Propulsion x2, Utility x4 10128 | -6/Factory | Discovered new exit (range 12) 10138 | -6/Factory | Identified exit to Lower Caves 10155 | -6/Factory | Loaded intel: 8 recycling unit locations 10225 | -6/Factory | Build established: Sprinter 10343 | -6/Factory | Identified exit to Extension 10351 | -6/Factory | Learned location of Protoforge (-2) 10541 | -6/Factory | Garrison activated, responded to threat 10570 | -6/Factory | Build established: Scout 10635 | -6/Factory | Discovered new exit (range 20) 10715 | -6/Factory | Discovered new exit (range 19) 10725 | -6/Factory | Identified exit to Factory 10973 | -6/Factory | Search patrols dispatched 11323 | -6/Factory | Search patrols dispatched 11328 | -6/Factory | Build established: Hacker-Sprinter 11460 | -6/Factory | Cargo convoy interrupted 11500 | -6/Factory | Destroyed 9 combat bots 11600 | -6/Factory | Manually triggered Chute Trap 11600 | -6/Factory | Sucked down chute 11600 | -6/Factory | Entered Waste 11601 | -6/Waste | Met a frightened Derelict 11602 | -6/Waste | Spotted C-40 Crusher 11612 | -6/Waste | Spotted C-40 Crusher 11615 | -6/Waste | EMP discharged 11615 | -6/Waste | System corruption reached 10% 11618 | -6/Waste | Spotted C-40 Crusher 11619 | -6/Waste | Spotted C-40 Crusher 11629 | -6/Waste | Spotted C-40 Crusher 11629 | -6/Waste | Spotted C-40 Crusher 11630 | -6/Waste | Discovered new exit (range 13) 11639 | -6/Waste | Identified exit to Factory 11640 | -6/Waste | Entered Factory 11679 | -6/Factory | Loaded intel: 8 recycling unit locations 11858 | -6/Factory | Spotted B-75 Beast 11979 | -6/Factory | Discovered exit to Factory (range 12) 12162 | -6/Factory | Repaired Weapon Mount? 12322 | -6/Factory | Entered Extension 12662 | -6/Extension | Lost 3 allies 13023 | -6/Extension | Spotted B-75 Beast 13030 | -6/Extension | Spotted B-75 Beast 13043 | -6/Extension | Allies destroyed B-75 Beast 13064 | -6/Extension | Allies destroyed B-75 Beast 13226 | -6/Extension | Energy Cycler disabled 13227 | -6/Extension | Rescued A7 13259 | -6/Extension | Core integrity fell below 50% 13289 | -6/Extension | Lost 7 parts (2p2n3u) 13503 | -6/Extension | Discovered exit to Factory (range 10) 13504 | -6/Extension | Discovered new exit (range 6) 13514 | -6/Extension | Build established: Commander-Mutant 13573 | -6/Extension | Identified exit to Cetus 13584 | -6/Extension | Entered Cetus 13584 | -6/Cetus | Accompanied by 11 allies (A7) 13589 | -6/Cetus | Acquired a Cetus Manufacturing Module code from A7 13600 | -6/Cetus | Spotted Cetus Guard 13608 | -6/Cetus | Spotted Cetus Guard 13610 | -6/Cetus | Spotted Cetus Guard 13610 | -6/Cetus | Spotted Cetus Guard 13629 | -6/Cetus | Destroyed Cetus Guard 13629 | -6/Cetus | Allies destroyed Cetus Guard 13647 | -6/Cetus | Allies destroyed Cetus Guard 13655 | -6/Cetus | Allies destroyed Cetus Guard 13675 | -6/Cetus | Lost 9 allies 13768 | -6/Cetus | Started Cetus Manufacturing Module 13793 | -6/Cetus | Manufactured an Enhanced Grunt 13818 | -6/Cetus | Manufactured an Enhanced Grunt 13843 | -6/Cetus | Manufactured an Enhanced Grunt 13864 | -6/Cetus | Murdered A7 13866 | -6/Cetus | Extracted ID and sensor layout for unrecognized location from A7's data core 13868 | -6/Cetus | Manufactured an Enhanced Grunt 13873 | -6/Cetus | Found Prototype Protection 13873 | -6/Cetus | Identified Med. Regenerative Plating 13893 | -6/Cetus | Manufactured an Enhanced Grunt 13933 | -6/Cetus | Build established: Scavenger-Mutant 13987 | -6/Cetus | Discovered new exit (range 16) 14016 | -6/Cetus | Spotted Cetus Guard 14016 | -6/Cetus | Spotted Cetus Guard 14020 | -6/Cetus | Spotted Cetus Guard 14020 | -6/Cetus | Spotted Cetus Guard 14027 | -6/Cetus | Allies destroyed Cetus Guard 14030 | -6/Cetus | Discovered exit to Factory (range 16) 14030 | -6/Cetus | Allies destroyed Cetus Guard 14037 | -6/Cetus | Allies destroyed Cetus Guard 14044 | -6/Cetus | Allies destroyed Cetus Guard 14045 | -6/Cetus | Met Revision 17 14116 | -6/Cetus | Identified exit to Archives 14128 | -6/Cetus | Entered Archives 14128 | -6/Archives | Accompanied by 4 allies 14168 | -6/Archives | Discovered new exit (range 15) 14181 | -6/Archives | Discovered new exit (range 16) 14266 | -6/Archives | Identified exit to Hub_04(d) 14271 | -6/Archives | Entered Hub_04(d) 14271 | -6/Hub_04(d) | Accompanied by 3 allies 14589 | -6/Hub_04(d) | Network Hub disabled 14619 | -6/Hub_04(d) | Discovered exit to Factory (range 13) 14627 | -6/Hub_04(d) | Network Hub disabled 14634 | -6/Hub_04(d) | Spotted Lightning 14639 | -6/Hub_04(d) | Spotted Lightning 14639 | -6/Hub_04(d) | Spotted Lightning 14642 | -6/Hub_04(d) | Entered Factory 14642 | -5/Factory | Evolved 2 slots: Propulsion x1, Utility x1 14782 | -5/Factory | Identified exit to Upper Caves 15055 | -5/Factory | Build established: Hacker-Mutant 15057 | -5/Factory | Central database locked down 15242 | -5/Factory | First assault squad dispatched 15250 | -5/Factory | Discovered new exit (range 5) 15254 | -5/Factory | Identified exit to Factory 15267 | -5/Factory | Loaded intel: 8 recycling unit locations 15412 | -5/Factory | System corruption reached 10% 15428 | -5/Factory | Lost 7 parts (1p3n3u) 15428 | -5/Factory | Core integrity fell below 50% 15475 | -5/Factory | Entered another Factory area 15475 | -4/Factory | Evolved 2 slots: Power x1, Utility x1 15571 | -4/Factory | Found Tesla Bomb Launcher 15671 | -4/Factory | Build established: Mutant 16061 | -4/Factory | Sucked down chute 16061 | -4/Factory | Entered Waste 16062 | -4/Waste | Met a frightened Derelict 16067 | -4/Waste | Spotted C-40 Crusher 16069 | -4/Waste | Spotted C-40 Crusher 16072 | -4/Waste | Spotted C-40 Crusher 16076 | -4/Waste | EMP discharged 16076 | -4/Waste | Spotted C-40 Crusher 16078 | -4/Waste | Spotted C-40 Crusher 16098 | -4/Waste | System corruption reached 10% 16100 | -4/Waste | Spotted C-40 Crusher 16107 | -4/Waste | Discovered new exit (range 14) 16119 | -4/Waste | Identified exit to Factory 16121 | -4/Waste | Entered Factory 16128 | -4/Factory | Loaded intel: 8 recycling unit locations 16387 | -4/Factory | Core integrity fell below 50% 16391 | -4/Factory | Lost 10 parts (1p5n4u) 16391 | -4/Factory | Released all parts (6) 16398 | -4/Factory | Core integrity fell below 20% 16403 | -4/Factory | Core destroyed Last Messages --------------- 16396_ Destabilizing: System corrupted (+2). 16397_ Slammed into Wall. 16397_ Destabilizing: Core damaged (-46). 16397_ U-05 Engineer lays Concrete. 16398_ Slammed into Wall. 16398_ Destabilizing: Core damaged (-11). 16398_ U-05 Engineer lays Concrete. 16399_ Slammed into Wall. 16399_ Destabilizing: Core damaged (-11). 16399_ U-05 Engineer lays Concrete. 16400_ Slammed into Wall. 16400_ U-05 Engineer lays Concrete. 16401_ Slammed into Wall. 16401_ U-05 Engineer lays Concrete. 16402_ Slammed into Wall. 16402_ Destabilizing: System corrupted (+2). 16402_ Destabilizing: System corrupted (+1). 16403_ U-05 Engineer lays Concrete. 16403_ Slammed into Wall. 16403_ Destabilizing: Core damaged (-57). Map ----- +----------------------------------------------------+ | ?????????????????????????????????????????????????? | | ?????????????????????????????????????????????????? | | ?????????????????????????????????????????????????? | | ?????????????????????????????????????????????????? | | ????????????# ????????###??????????????????????? | | ????????????# ??????? ???????????????????????? | | ????????????# ??????? ???????????????????????? | | ????????#???? ??????? ???????????????????????? | | ???????? ???? ??????# ???????????????????????? | | ??????"" ????? #?????# ???????????????????????? | | ??????T" ????? +?????# #???????????????????????? | | ?????? ?????# #?????# #???????????????????????? | | ?????? ?????# #?????# #???????????????????????? | | ?????? ?????# +?????# #???????????????????????? | | ?????? ?????#t #?????#u#???????????????????????? | | ?????? ?????# ####### #???????????????????????? | | ?????? ?????# #???????????????????????? | | ?????? ?????+ ! +???????????????????????? | | ?????? #?????# #???????????????????????? | | ?????? #?????# ##??????????????????????? | | ?????? #?????# ;#????????#?????????????? | | ??????# #??#+## ;#?????? #?????????????? | | ??????# #??# u ;#????"" #?????????????? | | ??????# #??# g ;#?? """ #?????????????? | | ??????# #??# [% *;#= #?????????????? | | ??????# #??# l@; =! #?????????????? | | ??????# #??# ;;! == #?????????????? | | ??????# ##?# ;# ! #?????????????? | | ??????# # ## * ;# #?????????????? | | ?######!#### "" #?#+######?????????????? | | ?# ==%[!!%[ ???????????????? | | ?# #####[= #??????????????????? | | ?# #???# ################# #??????????????????? | | ?# #???# #?????????????????#??????????????????? | | ?## #???#+#########????????????????????????????? | | ??# #???# #????????????????????????????? | | ??# #???# ] ! #????????????????????????????? | | ??# ##### """ #????????????????????????????? | | ??# + """ #????????????????????????????? | | ??# ### """ """#????????????????????????????? | | ??# ### Y"#????????????????????????????? | | ??## ### """#????????????????????????????? | | ???# ### #????????????????????????????? | | ???# ###########+# """"??????????????????????? | | #### """"??????????????????????? | | #########"##### """"??????????????????????? | | " #??# !##?????????"""???????????????????????? | | T #??# ###### """"??????????????????????? | | " #??# ! """"??????????????????????? | | #??# ###### #???????????????????? | +----------------------------------------------------+ Best States ------------- Heat Dissipation 59 Energy Generation 25 Energy Capacity 350 Matter Stores 300 Matter Capacity 300 Sight Range 22 Robot Scan Range 16 Terrain Scan Density 10 Power Amplification 40 Armor Coverage 450 Propulsion Shielding 66 Phase Shifting 10 Evasion (%) 65 Targeting Accuracy 20 Melee Accuracy 13 Target Analysis 5 Core Analysis 9 Armor Integrity Analysis 30 Recoil Reduction 5 Offensive Hacking 36 Authchip Count 1 Item Schematics ----------------- Cmb. Airjet | -9/Materials | Scanalyzed Hcp. Storage Unit | -9/Recycling | Hacked Lrg. Storage Unit | -9/Recycling | Hacked Plasma Cutter | -9/Recycling | Hacked Cld. VTOL Module | -6/Factory | Hacked Microactuators | -6/Factory | Hacked Scatter Rocket Array | -6/Factory | Scanalyzed Mni. Grenade Launcher | -6/Factory | Scanalyzed Lyr. Medium Armor Plating | -6/Factory | Scanalyzed Lgt. Fission Core | -6/Factory | Scanalyzed System Restoration Module | -6/Factory | Scanalyzed Cld. Nuclear Pulse Thruster | -6/Hub_04(d) | Hacked Imp. Hacking Suite | -5/Factory | Scanalyzed Robot Schematics ------------------ None Fabricated ------------ Nothing Repaired ---------- Lgt. Treads | 27% | -10/Materials Lgt. Treads | 35% | -10/Materials Lgt. Treads | 68% | -10/Materials Assault Rifle | 71% | -10/Materials Imp. Light Armor Plating | 19% | -9/Materials Weapon Mount | 10% | -6/Factory Studied --------- Hvy. Assault Rifle | -9/Materials | Hacked Lgt. Fission Core | -6/Factory | Hacked Nuclear Pulse Thruster | -6/Factory | Hacked Mni. Grenade Launcher | -6/Factory | Hacked VTOL Module | -5/Factory | Hacked Alien Tech Used ----------------- None Achievements -------------- None Challenges ------------ None Game ------ Seed DerelictHoverKatana Manual? 0 Play Time 02:26:52 Cumulative 584.9 hours Start 2025.11.18 @ 12:54:08 End 2025.11.19 @ 13:54:57 Sessions 5 Manual Loads 0 Difficulty Rogue Special Mode None Game No. 306 Rogue 306 Adventurer 0 Explorer 0 Win Type - Total 28 Types 14/2/7/1/0/0/1/1/1/1 Lore% 94 Gallery% 89 Achievement% 81 Wizard Run 0 Options --------- Layout 2 ASCII 0 Keyboard 1 Movement Vi Keybinds 0 Fullscreen 1 Font 28/Terminus Map View 50x52 Zoom Use 0% Tactical HUD 1 Map Filters NONE Filters NONE Steam 1 RUN: 4419bf5a-43d9-4438-a5ce-25ba1e9623bc